bitfinex/quotes_SOLUSD_20251007
["timestamp","ask_amount","ask_price","bid_price","bid_amount"]
[1759853046203,5.52623589,223.39,223.3,32.72]
[1759853046399,20.8,223.46,223.33,20.8]
[1759853046400,5.52623589,223.43,223.33,20.8]
[1759853046600,0.67,223.43,223.33,21.21]
[1759853046822,0.67,223.43,223.35,15.67047234]
[1759853047030,5.14482415,223.48,223.39,20.8]
[1759853047232,0.67,223.48,223.39,20.8]
[1759853048008,0.67,223.47,223.39,20.8]
[1759853048423,4.47448582,223.49,223.39,20.8]
[1759853048618,10.87647521,223.49,223.4,0.41]
[1759853048920,10.87647521,223.49,223.42,4.47587503]
[1759853049116,0.67,223.5,223.42,4.47587503]
[1759853049307,0.1,223.51,223.42,16.07556261]
[1759853049624,0.1,223.51,223.43,0.41]
[1759853050208,0.1,223.51,223.45,20.8]
[1759853050413,0.1,223.51,223.46,32.72]
[1759853050926,0.1,223.51,223.48,4.47467334]
[1759853051324,0.1,223.51,223.48,16.07135671]
[1759853052606,0.1,223.51,223.49,34.88]
[1759853052808,5.14427293,223.5,223.45,19.36]
[1759853053036,10.87647521,223.48,223.46,32.72]
[1759853053206,5.52623589,223.47,223.39,0.68]
[1759853053528,4.85623589,223.44,223.4,32.72]
[1759853053740,0.67,223.47,223.4,32.72]
[1759853053908,4.85623589,223.45,223.4,32.72]
[1759853054108,4.85623589,223.41,223.36,34.88]
[1759853054327,4.85623589,223.41,223.37,32.72]
[1759853055128,9.33241247,223.41,223.37,32.72]
[1759853055432,10.00241247,223.41,223.37,32.72]
[1759853055631,4.47617658,223.41,223.37,32.72]
[1759853055851,4.85623589,223.4,223.37,32.72]
[1759853057949,4.47617658,223.41,223.37,32.72]
[1759853058156,4.85623589,223.4,223.37,32.72]
[1759853058530,9.33254462,223.4,223.37,32.72]
[1759853058730,4.85623589,223.38,223.37,32.72]
[1759853059845,8.53555921,223.39,223.37,32.72]
[1759853060566,13.01206008,223.39,223.37,32.72]
[1759853061364,13.10467006,223.41,223.37,32.72]
[1759853061650,4.85623589,223.44,223.38,0.68]
[1759853061853,10.87647521,223.43,223.38,0.68]
[1759853062255,4.85623589,223.42,223.37,32.72]
[1759853064155,9.33211112,223.42,223.37,32.72]
[1759853064661,10.87647521,223.39,223.36,34.88]
[1759853064859,10.87647521,223.39,223.37,32.7]
[1759853065663,4.85623589,223.38,223.37,32.7]
[1759853067257,9.3329124,223.38,223.37,32.7]
[1759853068241,15.35295752,223.39,223.37,32.7]
[1759853068765,10.87647521,223.39,223.37,32.7]
[1759853069064,4.85623589,223.42,223.38,0.66]
[1759853069368,4.47567805,223.43,223.39,0.66]
[1759853069580,4.47567805,223.43,223.4,33.36]
[1759853069944,10.87647521,223.4,223.36,34.88]
[1759853070148,4.85623589,223.38,223.37,32.7]
[1759853070578,16.3927111,223.38,223.37,32.7]
[1759853071156,20.86938761,223.38,223.37,32.7]
[1759853071659,16.01315172,223.38,223.37,32.7]
[1759853071854,20.86938761,223.38,223.37,32.7]
[1759853073672,10.87647521,223.37,223.36,34.88]
[1759853073876,9.3329124,223.38,223.36,67.58]
[1759853074053,0.66,223.37,223.36,67.58]
[1759853075280,9.99311282,223.37,223.36,67.58]
[1759853075876,9.99311282,223.37,223.27,0.66]
[1759853075877,10.87647521,223.33,223.27,0.66]
[1759853076470,4.85623589,223.31,223.27,0.66]
[1759853076671,10.87647521,223.33,223.27,0.66]
[1759853076887,15.66906925,223.37,223.28,32.7]
[1759853076888,10.87647521,223.36,223.28,32.7]
[1759853077094,10.87647521,223.34,223.29,0.66]
[1759853077402,3.08606359,223.36,223.3,32.7]
[1759853077573,3.08606359,223.36,223.31,0.66]
[1759853077904,3.08606359,223.36,223.32,33.36]
[1759853078287,3.08606359,223.36,223.32,33.35]
[1759853078493,7.56321566,223.36,223.33,0.65]
[1759853078681,7.56321566,223.36,223.32,32.7]
[1759853078994,7.56321566,223.36,223.32,33.35]
[1759853080904,7.56284207,223.38,223.35,32.7]
[1759853081075,13.9625388,223.36,223.35,32.7]
[1759853081579,10.87647521,223.36,223.35,32.7]
[1759853081786,13.9625388,223.36,223.35,32.7]
[1759853082190,18.43961616,223.36,223.35,32.7]
[1759853082792,7.56314095,223.36,223.35,32.7]
[1759853083210,4.47707736,223.36,223.35,32.7]
[1759853083375,7.56314095,223.36,223.35,32.7]
[1759853083578,7.56314095,223.36,223.35,33.35]
[1759853083776,7.56314095,223.36,223.35,32.7]
[1759853086116,4.47707736,223.36,223.35,32.7]
[1759853086296,7.56314095,223.36,223.35,32.7]
[1759853088234,10.87647521,223.39,223.35,33.35]
[1759853088530,3.08606359,223.41,223.36,0.65]
[1759853088827,13.9625388,223.42,223.36,0.65]
[1759853088995,3.08606359,223.42,223.36,0.65]
[1759853089196,13.9625388,223.42,223.36,0.65]
[1759853090016,15.35245284,223.42,223.36,5.12701059]
[1759853090214,15.35245284,223.42,223.37,0.65]
[1759853090415,15.35245284,223.42,223.38,0.65]
[1759853090615,15.35245284,223.42,223.39,32.7]
[1759853090799,3.08606359,223.41,223.39,32.7]
[1759853090999,4.47597763,223.42,223.39,32.7]
[1759853091219,3.08606359,223.41,223.39,32.7]
[1759853091720,4.47597763,223.42,223.39,32.7]
[1759853091895,15.35245284,223.42,223.39,32.7]
[1759853092097,3.08606359,223.41,223.39,32.7]
[1759853093320,10.87647521,223.42,223.39,33.35]
[1759853093520,3.08606359,223.42,223.39,33.35]
[1759853093918,10.87647521,223.44,223.39,33.35]
[1759853094218,7.5620512,223.42,223.39,33.35]
[1759853094400,3.08606359,223.43,223.4,0.65]
[1759853094606,15.35205633,223.44,223.41,0.65]
[1759853094818,3.08606359,223.43,223.42,0.65]
[1759853094997,3.08606359,223.45,223.43,0.65]
[1759853095203,13.9625388,223.45,223.44,32.68]
[1759853096330,18.43781291,223.45,223.44,32.68]
[1759853097820,16.04174932,223.45,223.44,32.68]
[1759853098023,19.35692554,223.45,223.44,32.68]
[1759853098312,22.44298913,223.45,223.44,32.68]
[1759853101758,22.44298913,223.45,223.34,34.9]
[1759853101759,31.67647521,223.4,223.35,0.67]
[1759853101919,3.08606359,223.38,223.35,0.67]
[1759853102420,4.47647611,223.39,223.35,0.67]
[1759853102838,4.47647611,223.39,223.36,32.66]
[1759853103039,4.47647611,223.39,223.36,33.33]
[1759853103211,3.08606359,223.37,223.36,32.66]
[1759853103418,3.08606359,223.37,223.36,33.33]
[1759853103614,3.08606359,223.37,223.36,32.66]
[1759853103928,7.56294052,223.37,223.36,32.66]
[1759853104240,3.08606359,223.39,223.36,33.33]
[1759853104412,10.87647521,223.38,223.37,0.67]
[1759853104615,20.8,223.41,223.37,0.67]
[1759853104829,13.9625388,223.39,223.37,0.67]
[1759853105039,13.9625388,223.39,223.36,32.66]
[1759853105216,3.08606359,223.37,223.36,32.66]
[1759853105423,3.08606359,223.37,223.36,33.33]
[1759853106048,7.56294052,223.37,223.36,32.66]
[1759853106432,3.08606359,223.37,223.36,32.66]
[1759853106816,7.56294052,223.37,223.36,32.66]
[1759853107227,19.12941573,223.37,223.36,32.66]
[1759853107428,18.43941573,223.37,223.36,32.66]
[1759853108153,19.12941573,223.37,223.36,32.66]
[1759853108724,22.44596922,223.37,223.36,32.66]
[1759853111073,28.59343042,223.37,223.36,33.33]
[1759853111370,28.59343042,223.37,223.36,32.66]
[1759853111371,7.56294052,223.37,223.36,32.66]
[1759853111725,8.25294052,223.37,223.36,32.66]
[1759853111930,31.67647521,223.35,223.23,0.2]
[1759853112146,10.87647521,223.27,223.24,0.67]
[1759853112433,10.87647521,223.27,223.23,0.2]
[1759853112434,13.9625388,223.27,223.25,32.66]
[1759853113259,27.14931283,223.27,223.25,32.66]
[1759853113446,27.83931283,223.27,223.25,32.66]
[1759853114232,16.04555789,223.26,223.25,32.66]
[1759853114431,15.35555789,223.26,223.25,32.66]
[1759853114968,15.35555789,223.26,223.23,0.87]
[1759853114969,10.87647521,223.25,223.23,0.2]
[1759853115135,3.08606359,223.24,223.23,0.2]
[1759853116057,10.87647521,223.25,223.23,32.86]
[1759853116257,7.56554755,223.24,223.23,32.86]
[1759853116663,19.13202276,223.24,223.23,32.86]
[1759853116856,39.93202276,223.24,223.23,32.86]
[1759853117155,19.13202276,223.24,223.23,32.86]
[1759853117354,10.87647521,223.23,223.22,0.2]
[1759853117662,4.47948396,223.24,223.22,0.87]
[1759853117833,4.47948396,223.24,223.22,0.2]
[1759853118235,3.08606359,223.25,223.22,0.2]
[1759853118461,3.08606359,223.27,223.23,33.33]
[1759853118655,3.08606359,223.29,223.24,0.67]
[1759853118861,3.08606359,223.28,223.24,0.67]
[1759853119055,3.08606359,223.26,223.23,32.66]
[1759853119251,3.08606359,223.26,223.23,33.33]
[1759853119772,3.08606359,223.26,223.24,0.67]
[1759853120160,7.56501423,223.27,223.24,0.67]
[1759853120646,3.08606359,223.25,223.23,32.66]
[1759853121759,3.08606359,223.25,223.24,0.67]
[1759853122249,7.56544096,223.25,223.23,32.66]
[1759853122844,10.87647521,223.24,223.23,32.66]
[1759853123451,7.56544096,223.25,223.23,32.66]
[1759853123452,25.27937737,223.25,223.23,33.33]
[1759853123658,11.56647521,223.24,223.22,1e-08]
[1759853123854,13.9625388,223.23,223.22,1e-08]
[1759853124060,34.7625388,223.23,223.22,1e-08]
[1759853124370,39.24222343,223.23,223.22,1e-08]
[1759853124571,36.15615984,223.23,223.22,1e-08]
[1759853124751,36.84615984,223.23,223.22,1e-08]
[1759853124951,39.24222343,223.23,223.22,32.66000001]
[1759853125268,39.93222343,223.23,223.22,32.66000001]
[1759853125473,39.24222343,223.23,223.22,32.66000001]
[1759853126652,39.94222343,223.23,223.22,32.66000001]
[1759853126967,39.24222343,223.23,223.22,32.66000001]
[1759853128971,36.15615984,223.23,223.22,32.66000001]
[1759853129149,39.24222343,223.23,223.22,32.66000001]
[1759853130586,39.94222343,223.23,223.22,32.66000001]
[1759853130968,39.24222343,223.23,223.22,32.66000001]
[1759853132469,39.94222343,223.23,223.22,32.66000001]
[1759853132673,19.14222343,223.23,223.22,32.66000001]
[1759853132887,18.44222343,223.23,223.22,32.66000001]
[1759853135179,18.44222343,223.23,223.17,0.68]
[1759853135180,20.8,223.2,223.17,0.68]
[1759853135485,3.08606359,223.18,223.17,0.68]
[1759853135694,3.08606359,223.18,223.14,34.9]
[1759853136069,3.08606359,223.3,223.14,34.9]
[1759853136070,5.12659405,223.34,223.14,39.38146952]
[1759853136390,3.08606359,223.26,223.18,20.8]
[1759853136593,20.8,223.3,223.19,0.68]
[1759853136764,3.08606359,223.27,223.2,32.64]
[1759853136963,3.08606359,223.27,223.21,0.68]
[1759853137169,1.9765741,223.27,223.21,0.68]
[1759853137681,1.9765741,223.25,223.21,0.68]
[1759853137977,20.8,223.28,223.22,0.68]
[1759853139166,25.27888207,223.27,223.22,0.68]
[1759853139669,25.27888207,223.27,223.23,32.64]
[1759853139993,20.8,223.27,223.24,0.71]
[1759853140372,4.47875768,223.28,223.25,0.71]
[1759853140806,6.45533178,223.28,223.25,0.71]
[1759853141095,4.47875768,223.28,223.26,0.71]
[1759853141277,1.9765741,223.28,223.27,0.71]
[1759853141982,1.9765741,223.28,223.23,32.64]
[1759853142200,4.47848089,223.29,223.24,0.71]
[1759853142365,1.9765741,223.27,223.25,0.71]
[1759853142569,1.9765741,223.27,223.23,32.64]
[1759853142570,1.9765741,223.27,223.26,0.71]
[1759853142771,10.87647521,223.26,223.23,32.64]
[1759853142968,1.9765741,223.24,223.23,32.64]
[1759853143170,15.67959859,223.22,223.14,34.9]
[1759853143480,1.9765741,223.17,223.14,34.9]
[1759853143683,36.47959859,223.22,223.15,0.71]
[1759853143886,20.8,223.19,223.15,0.71]
[1759853144095,1.9765741,223.2,223.15,0.71]
[1759853144272,1.9765741,223.2,223.16,0.71]
[1759853144482,1.9765741,223.2,223.17,33.35]
[1759853145176,4.48048747,223.19,223.17,33.35]
[1759853145481,6.45706157,223.19,223.18,0.71]
[1759853145678,4.48048747,223.19,223.18,0.71]
[1759853146682,4.48048747,223.19,223.18,32.64]
[1759853146683,17.65828026,223.19,223.18,32.64]
[1759853147399,29.23475547,223.19,223.18,32.64]
[1759853147806,17.33353678,223.19,223.18,32.64]
[1759853148526,20.8,223.23,223.18,33.35]
[1759853148701,20.8,223.23,223.19,0.71]
[1759853148702,1.9765741,223.23,223.19,0.71]
[1759853148875,1.9765741,223.21,223.19,0.71]
[1759853149300,1.9765741,223.21,223.18,32.64]
[1759853149480,10.87647521,223.23,223.18,32.64]
[1759853149481,1.9765741,223.19,223.18,32.64]
[1759853150004,10.87647521,223.23,223.18,32.64]
[1759853150206,1.9765741,223.19,223.18,32.64]
[1759853150975,6.45706157,223.19,223.18,32.64]
[1759853151178,4.48048747,223.19,223.18,32.64]
[1759853151683,6.45706157,223.19,223.18,32.64]
[1759853152597,4.48048747,223.19,223.18,32.64]
[1759853152807,6.45706157,223.19,223.18,32.64]
[1759853154483,4.48048747,223.19,223.18,32.64]
[1759853154702,6.45706157,223.19,223.18,32.64]
[1759853155409,17.33353678,223.19,223.18,32.64]
[1759853155624,31.83318786,223.19,223.14,35.61]
[1759853155908,20.8,223.16,223.14,34.9]
[1759853156214,10.87647521,223.2,223.14,34.9]
[1759853156215,4.48040208,223.2,223.14,34.9]
[1759853156503,4.48040208,223.2,223.15,0.71]
[1759853156882,1.9765741,223.19,223.16,33.32]
[1759853157084,1.9765741,223.19,223.17,0.7]
[1759853157387,1.9765741,223.19,223.18,33.32]
[1759853157700,1.9765741,223.19,223.17,0.7]
[1759853157890,1.9765741,223.19,223.18,32.62]
[1759853158502,6.45706157,223.19,223.18,32.62]
[1759853158701,6.45706157,223.19,223.16,0.7]
[1759853158910,17.65828026,223.19,223.17,32.62]
[1759853159286,1.9765741,223.18,223.17,32.62]
[1759853159503,1.9765741,223.18,223.15,0.7]
[1759853159707,1.9765741,223.18,223.16,0.7]
[1759853159912,22.7765741,223.16,223.14,34.9]
[1759853160207,22.7765741,223.16,223.15,32.62]
[1759853160581,4.48129061,223.15,223.14,34.9]
[1759853160784,22.7765741,223.16,223.14,67.52]
[1759853160785,20.8,223.16,223.14,67.52]
[1759853161015,1.9765741,223.15,223.14,67.52]
[1759853161808,6.45786471,223.15,223.14,67.52]
[1759853162286,25.28129061,223.15,223.14,67.52]
[1759853162485,27.25786471,223.15,223.14,67.52]
[1759853163508,27.92786471,223.15,223.14,34.9]
[1759853163707,25.28129061,223.15,223.14,67.52]
[1759853163913,27.25786471,223.15,223.14,67.52]
[1759853164792,27.25786471,223.15,223.14,72.52]
[1759853165202,20.8,223.14,223.13,0.2]
[1759853165510,30.56037812,223.14,223.13,32.82]
[1759853165708,27.25806554,223.14,223.13,32.82]
[1759853166208,25.28149144,223.14,223.13,33.52]
[1759853166385,27.25806554,223.14,223.13,32.82]
[1759853167500,27.25806554,223.14,223.13,0.2]
[1759853167706,30.5588027,223.14,223.13,32.82]
[1759853167907,27.25806554,223.14,223.13,32.82]
[1759853168304,27.25806554,223.14,223.13,0.2]
[1759853168501,25.28149144,223.14,223.13,32.82]
[1759853168704,27.25806554,223.14,223.13,32.82]
[1759853168918,27.92806554,223.14,223.13,0.2]
[1759853169120,27.92806554,223.14,223.13,32.82]
[1759853169316,27.25806554,223.14,223.13,32.82]
[1759853170926,25.28149144,223.14,223.13,32.82]
[1759853171129,25.28149144,223.14,223.13,33.52]
[1759853171316,4.4810898,223.16,223.13,33.52]
[1759853171508,1.9765741,223.15,223.14,0.7]
[1759853171708,1.9765741,223.15,223.13,32.82]
[1759853173931,6.45786471,223.15,223.14,32.62]
[1759853174510,4.48129061,223.15,223.13,0.2]
[1759853174712,4.48129061,223.15,223.14,32.62]
[1759853175338,11.2027245,223.16,223.14,32.62]
[1759853175907,1.9765741,223.15,223.14,32.62]
[1759853176108,11.2027245,223.16,223.14,0.7]
[1759853176334,11.2027245,223.16,223.13,0.2]
[1759853176335,1.9765741,223.15,223.13,0.2]
[1759853176510,1.9765741,223.15,223.14,32.62]
[1759853177036,1.9765741,223.15,223.13,0.2]
[1759853177331,6.45786471,223.15,223.14,32.6]
[1759853178406,4.48129061,223.15,223.14,33.3]
[1759853178723,1.9765741,223.16,223.14,33.3]
[1759853178926,4.48098272,223.17,223.15,0.7]
[1759853179141,4.47935273,223.25,223.14,32.6]
[1759853179307,14.17545226,223.24,223.14,32.6]
[1759853179507,1.9765741,223.19,223.14,32.6]
[1759853179833,1.9765741,223.19,223.15,0.7]
[1759853180514,10.87647521,223.25,223.15,0.7]
[1759853180842,20.8,223.22,223.15,0.7]
[1759853181127,1.9765741,223.22,223.15,0.7]
[1759853181330,6.45659061,223.22,223.15,5.18127487]
[1759853181547,6.45659061,223.22,223.16,0.7]
[1759853181726,1.9765741,223.22,223.16,0.7]
[1759853182045,4.47948396,223.24,223.16,0.7]
[1759853182337,1.9765741,223.21,223.16,0.7]
[1759853183848,1.9765741,223.19,223.16,0.7]
[1759853184015,10.87647521,223.21,223.17,32.6]
[1759853184350,1.9765741,223.19,223.17,33.3]
[1759853184509,15.67819386,223.24,223.18,0.7]
[1759853184908,1.9765741,223.2,223.18,0.7]
[1759853185322,1.9765741,223.21,223.19,0.7]
[1759853185529,15.67819386,223.24,223.17,32.6]
[1759853185716,1.9765741,223.22,223.18,0.7]
[1759853185916,1.9765741,223.21,223.17,32.6]
[1759853186137,1.9765741,223.21,223.18,0.7]
[1759853186344,1.9765741,223.21,223.19,0.7]
[1759853187209,6.45686083,223.2,223.17,0.66]
[1759853187438,6.45686083,223.2,223.18,32.58]
[1759853187630,6.45686083,223.2,223.18,33.24]
[1759853188312,15.68100357,223.2,223.19,32.58]
[1759853188647,17.65757767,223.2,223.19,32.58]
[1759853189325,15.68100357,223.2,223.19,32.58]
[1759853189640,17.65757767,223.2,223.19,32.58]
[1759853190341,18.31757767,223.2,223.19,32.58]
[1759853190535,17.65757767,223.2,223.19,32.58]
[1759853190930,18.31757767,223.2,223.19,32.58]
[1759853191427,17.65757767,223.2,223.19,32.58]
[1759853191625,18.31757767,223.2,223.19,32.58]
[1759853192417,29.19405288,223.2,223.19,32.58]
[1759853192821,40.40326213,223.2,223.19,32.58]
[1759853194845,40.40326213,223.2,223.13,35.12]
[1759853194846,20.8,223.17,223.13,0.2]
[1759853195025,1.9765741,223.14,223.13,0.2]
[1759853195227,1.9765741,223.14,223.13,19.9]
[1759853195545,6.45806554,223.14,223.13,19.9]
[1759853196128,4.48149144,223.14,223.13,19.9]
[1759853196330,11.20289495,223.16,223.13,20.56]
[1759853196331,20.8,223.16,223.13,20.56]
[1759853196527,1.9765741,223.15,223.13,20.56]
[1759853196730,1.9765741,223.15,223.13,19.9]
[1759853196935,1.9765741,223.15,223.14,32.56]
[1759853197135,3.09158235,223.15,223.14,32.56]
[1759853197737,7.57287296,223.15,223.14,32.56]
[1759853199034,4.48129061,223.15,223.14,32.56]
[1759853199365,7.57287296,223.15,223.13,0.2]
[1759853199522,20.8,223.14,223.13,0.2]
[1759853199723,28.37307379,223.14,223.13,32.76]
[1759853199923,28.37307379,223.14,223.06,34.92]
[1759853200949,4.48149144,223.14,223.06,34.92]
[1759853201154,4.48149144,223.14,223.07,32.56]
[1759853201338,0.72,223.23,223.08,0.44826967]
[1759853201339,11.20158544,223.19,223.08,0.44826967]
[1759853201547,3.09158235,223.18,223.08,0.44826967]
[1759853201726,20.8,223.2,223.09,33.00824958]
[1759853202052,20.8,223.2,223.1,0.69]
[1759853202253,0.72,223.27,223.12,20.8]
[1759853202254,15.67678938,223.26,223.12,20.8]
[1759853202430,3.09158235,223.21,223.13,1.13816922]
[1759853202625,15.67678938,223.26,223.14,33.25]
[1759853202831,3.09158235,223.23,223.14,0.69]
[1759853203143,3.09158235,223.22,223.15,32.56]
[1759853203348,4.47908268,223.26,223.16,33.25]
[1759853203547,3.09158235,223.24,223.16,33.25]
[1759853203738,10.87647521,223.29,223.16,33.25]
[1759853203739,0.72,223.23,223.16,0.44810898]
[1759853203935,3.09158235,223.17,223.07,0.44828977]
[1759853204129,3.09158235,223.19,223.08,32.56]
[1759853204361,3.09158235,223.13,223.08,32.56]
[1759853204576,20.8,223.16,223.06,35.61]
[1759853204577,3.09158235,223.11,223.06,34.92]
[1759853204786,3.09158235,223.11,223.07,32.56]
[1759853204951,3.09158235,223.09,223.06,34.92]
[1759853205152,3.09158235,223.07,223.04,34.92]
[1759853205376,3.09158235,223.07,223.05,32.56]
[1759853205552,20.8,223.15,223.05,33.25]
[1759853205749,25.282221,223.11,223.05,33.25]
[1759853205953,23.89158235,223.12,223.05,33.25]
[1759853206149,20.8,223.15,223.05,37.73328912]
[1759853206376,3.09158235,223.14,223.05,37.73328912]
[1759853207157,3.09158235,223.14,223.05,33.25]
[1759853207558,36.48311152,223.17,223.05,33.25]
[1759853207559,3.09158235,223.12,223.05,33.25]
[1759853207793,3.09158235,223.12,223.05,5.17327959]
[1759853208073,3.09158235,223.12,223.06,32.56]
[1759853208578,3.09158235,223.14,223.06,32.56]
[1759853208876,3.09158235,223.12,223.07,32.56]
[1759853209274,3.09158235,223.12,223.07,33.25]
[1759853209969,3.09158235,223.12,223.08,32.56]
[1759853210165,20.8,223.17,223.08,33.25]
[1759853210363,3.09158235,223.15,223.08,33.25]
[1759853210569,3.09158235,223.15,223.09,32.56]
[1759853210765,3.09158235,223.15,223.08,0.69]
[1759853210962,3.09158235,223.15,223.09,32.56]
[1759853211156,3.09158235,223.15,223.08,0.69]
[1759853211386,3.09158235,223.15,223.09,32.54]
[1759853212082,3.09158235,223.15,223.1,32.54]
[1759853212475,3.09158235,223.13,223.05,0.44832997]
[1759853212691,3.09158235,223.13,223.06,32.54]
[1759853212887,3.09158235,223.13,223.04,35.36835007]
[1759853213195,3.09158235,223.09,223.05,32.54]
[1759853213356,3.09158235,223.09,223.04,34.92]
[1759853213560,3.09158235,223.09,223.05,32.54]
[1759853213988,3.09158235,223.09,223.04,39.4034614]
[1759853214290,4.48210215,223.11,223.05,32.54]
[1759853214472,3.09158235,223.1,223.05,32.54]
[1759853215198,20.8,223.12,223.06,0.69]
[1759853215374,25.28193587,223.12,223.06,0.69]
[1759853215572,20.8,223.11,223.06,0.69]
[1759853215798,20.8,223.12,223.06,0.69]
[1759853215958,20.8,223.12,223.07,0.69]
[1759853216291,20.8,223.09,223.08,32.54]
[1759853216497,23.89158235,223.09,223.08,32.54]
[1759853217972,20.8,223.09,223.08,32.54]
[1759853218174,23.89158235,223.09,223.08,32.54]
[1759853218572,28.3740782,223.09,223.08,32.54]
[1759853219205,28.3740782,223.09,223.04,34.92]
[1759853219366,3.09158235,223.07,223.05,32.54]
[1759853219975,20.8,223.09,223.05,32.54]
[1759853220208,3.09158235,223.09,223.05,32.54]
[1759853221386,13.23984364,223.1,223.04,34.92]
[1759853221387,3.09158235,223.08,223.04,34.92]
[1759853221710,3.09158235,223.08,223.05,32.54]
[1759853221877,3.09158235,223.08,223.04,34.92]
[1759853222207,7.57438793,223.08,223.05,32.54]
[1759853222597,7.57438793,223.08,223.04,34.92]
[1759853222598,7.57438793,223.08,223.06,32.54]
[1759853222801,7.57438793,223.08,223.04,34.92]
[1759853223105,3.09158235,223.05,223.04,34.92]
[1759853223338,3.09158235,223.07,223.04,67.46]
[1759853224004,20.8,223.06,223.05,32.54]
[1759853224577,4.48309871,223.06,223.04,34.92]
[1759853224779,4.48309871,223.06,223.0,0.2]
[1759853224780,24.58158235,223.05,223.0,0.2]
[1759853224983,3.09158235,223.03,223.01,29.48]
[1759853225181,25.28309871,223.06,223.01,29.48]
[1759853225419,25.28309871,223.06,223.01,30.18]
[1759853225574,25.28309871,223.06,223.02,0.7]
[1759853225776,20.8,223.06,223.02,0.7]
[1759853225977,20.8,223.06,223.03,32.54]
[1759853226310,20.8,223.06,223.04,0.7]
[1759853226473,20.8,223.05,223.03,32.54]
[1759853226678,7.57400049,223.1,223.03,37.02363201]
[1759853227120,7.57400049,223.1,223.04,0.7]
[1759853227717,8.26400049,223.1,223.05,32.52]
[1759853227896,8.26400049,223.1,223.06,32.52]
[1759853228096,3.09158235,223.09,223.06,32.52]
[1759853228395,25.28241814,223.1,223.06,33.22]
[1759853228612,29.06400049,223.1,223.06,32.52]
[1759853228823,29.06400049,223.1,223.07,32.52]
[1759853229722,28.37400049,223.1,223.07,32.52]
[1759853229933,4.48203613,223.12,223.08,33.22]
[1759853230235,3.09158235,223.15,223.09,33.22]
[1759853230401,20.8,223.12,223.1,32.52]
[1759853230734,25.28168255,223.14,223.11,33.22]
[1759853230735,20.8,223.14,223.11,33.22]
[1759853231034,20.8,223.14,223.12,32.52]
[1759853231195,20.8,223.14,223.09,0.7]
[1759853231395,3.09158235,223.13,223.1,32.52]
[1759853231613,3.09158235,223.13,223.07,0.7]
[1759853231794,25.28158809,223.14,223.08,32.52]
[1759853231996,28.37317044,223.14,223.08,33.22]
[1759853232211,28.37317044,223.14,223.09,0.7]
[1759853232406,28.37317044,223.14,223.1,0.7]
[1759853232590,0.69,223.13,223.05,0.7]
[1759853232797,20.8,223.12,223.05,0.7]
[1759853233021,20.8,223.12,223.06,27.3]
[1759853233195,7.57317044,223.14,223.07,0.7]
[1759853233395,28.37317044,223.14,223.07,0.7]
[1759853234025,25.97158809,223.14,223.08,32.52]
[1759853234197,3.09158235,223.13,223.08,32.52]
[1759853234398,3.09158235,223.11,223.08,32.52]
[1759853234602,4.48229493,223.1,223.09,32.52]
[1759853234809,25.28229493,223.1,223.05,0.7]
[1759853235008,25.28229493,223.1,223.06,32.52]
[1759853235208,25.28229493,223.1,223.07,34.94]
[1759853235408,4.48229493,223.1,223.07,34.94]
[1759853236112,21.49,223.09,223.08,32.52]
[1759853236426,24.58158235,223.09,223.08,32.52]
[1759853237231,24.58158235,223.09,223.07,34.94]